fUST/lending_fUST_20240918
["ID","MTS","AMOUNT","RATE_DAILY","PERIOD"]
[338459574,1726657840814,-1079.14,0.00019178,2]
[338459575,1726657840824,-1079.14,0.00019178,2]
[338459576,1726657840835,-1079.14,0.00019178,2]
[338459577,1726657840845,-1079.14,0.00019178,2]
[338459578,1726657840857,-1079.14,0.00019178,2]
[338459579,1726657840869,-512.14,0.00019178,2]
[338459580,1726657840880,-1079.14,0.00019178,2]
[338459581,1726657840891,-1079.14,0.00019178,2]
[338459582,1726657840902,-1079.14,0.00019178,2]
[338459583,1726657840913,-1079.14,0.00019178,2]
[338459584,1726657840924,-1079.14,0.00019178,2]
[338459585,1726657840936,-1079.14,0.00019178,2]
[338459586,1726657840952,-1079.14,0.00019178,2]
[338459587,1726657840964,-1079.14,0.00019178,2]
[338459588,1726657840976,-1079.14,0.00019178,2]
[338459589,1726657840986,-1079.14,0.00019178,2]
[338459590,1726657840998,-1079.14,0.00019178,2]
[338459591,1726657841008,-501.36125652,0.00019178,2]
[338459592,1726657841019,-1079.14,0.00019178,2]
[338459593,1726657841031,-1079.14,0.00019178,2]
[338459594,1726657841043,-1079.14,0.00019178,2]
[338459595,1726657841055,-1079.14,0.00019178,2]
[338459596,1726657841067,-1079.21861078,0.00019178,2]
[338459597,1726657841077,-504.96,0.00019178,2]
[338459598,1726657841089,-572.89102883,0.00019178,2]
[338459599,1726657841101,-500.0,0.00019178,2]
[338459600,1726657841113,-408.00461626,0.00019178,2]
[338459601,1726657841124,-500.0,0.00019178,2]
[338459602,1726657841134,-594.25,0.00019178,2]
[338459603,1726657841146,-500.0,0.00019178,2]
[338459604,1726657841156,-500.0,0.00019178,2]
[338459605,1726657841168,-500.0,0.00019178,2]
[338459606,1726657841180,-500.0,0.00019178,2]
[338459607,1726657841190,-1195.64,0.00019178,2]
[338459608,1726657841203,-612.57,0.00019178,2]
[338459609,1726657841215,-1728.32,0.00019178,2]
[338459610,1726657841227,-500.0,0.00019178,2]
[338459611,1726657841239,-500.0,0.00019178,2]
[338459612,1726657841248,-626.71542843,0.00019178,2]
[338459613,1726657841258,-500.0,0.00019178,2]
[338459614,1726657841269,-938.43,0.00019178,2]
[338459615,1726657841279,-500.0,0.00019178,2]
[338459616,1726657841291,-1139.04,0.00019178,2]
[338459617,1726657841303,-227.97090615,0.00019178,2]
[338459618,1726657841314,-511.53445351,0.00019178,2]
[338459619,1726657841325,-500.0,0.00019178,2]
[338459620,1726657841335,-824.52,0.00019178,2]
[338459621,1726657841346,-500.0,0.00019178,2]
[338459622,1726657841359,-541.99,0.00019178,2]
[338459623,1726657841370,-500.0,0.00019178,2]
[338459624,1726657841379,-500.0,0.00019178,2]
[338459625,1726657841390,-500.0,0.00019178,2]
[338459626,1726657841400,-1621.13,0.00019178,2]
[338459627,1726657841410,-507.05187652,0.00019178,2]
[338459628,1726657841420,-500.0,0.00019178,2]
[338459629,1726657841430,-500.0,0.00019178,2]
[338459630,1726657841440,-896.22,0.00019178,2]
[338459631,1726657841450,-500.0,0.00019178,2]
[338459632,1726657841460,-500.0,0.00019178,2]
[338459633,1726657841470,-903.71,0.00019178,2]
[338459634,1726657841480,-540.12,0.00019178,2]
[338459635,1726657841489,-1177.84,0.00019178,2]
[338459636,1726657841499,-500.0,0.00019178,2]
[338459637,1726657841508,-500.0,0.00019178,2]
[338459638,1726657841518,-912.11,0.00019178,2]
[338459639,1726657841528,-500.0,0.00019178,2]
[338459640,1726657841537,-500.0,0.00019178,2]
[338459641,1726657841552,-1376.67,0.00019178,2]
[338459642,1726657841562,-755.63,0.00019178,2]
[338459643,1726657841572,-500.0,0.00019178,2]
[338459644,1726657841581,-779.3,0.00019178,2]
[338459645,1726657841592,-500.0,0.00019178,2]
[338459646,1726657841602,-1447.85,0.00019178,2]
[338459647,1726657841611,-500.0,0.00019178,2]
[338459648,1726657841621,-520.25,0.00019178,2]
[338459649,1726657841631,-500.0,0.00019178,2]
[338459650,1726657841641,-514.86769866,0.00019178,2]
[338459651,1726657841651,-2073.95,0.00019178,2]
[338459652,1726657841662,-500.0,0.00019178,2]
[338459653,1726657841672,-500.0,0.00019178,2]
[338459654,1726657841682,-500.0,0.00019178,2]
[338459655,1726657841692,-500.0,0.00019178,2]
[338459656,1726657841701,-500.0,0.00019178,2]
[338459657,1726657841711,-500.0,0.00019178,2]
[338459658,1726657841722,-2538.55,0.00019178,2]
[338459659,1726657841732,-500.0,0.00019178,2]
[338459660,1726657841742,-1655.38,0.00019178,2]
[338459661,1726657841752,-500.0,0.00019178,2]
[338459662,1726657841762,-559.26,0.00019178,2]
[338459663,1726657841772,-530.46738935,0.00019178,2]
[338459664,1726657841782,-838.86,0.00019178,2]
[338459665,1726657841792,-500.0,0.00019178,2]
[338459666,1726657841804,-500.0,0.00019178,2]
[338459667,1726657841814,-498.90086548,0.00019178,2]
[338459669,1726657842578,-1.09913452,0.00019178,2]
[338459670,1726657842588,-500.0,0.00019178,2]
[338459671,1726657842599,-500.0,0.00019178,2]
[338459672,1726657842610,-500.0,0.00019178,2]
[338459673,1726657842621,-1028.42,0.00019178,2]
[338459674,1726657842632,-570.15,0.00019178,2]
[338459675,1726657842641,-500.0,0.00019178,2]
[338459676,1726657842651,-523.09,0.00019178,2]
[338459677,1726657842660,-1181.86,0.00019178,2]
[338459678,1726657842669,-500.0,0.00019178,2]
[338459679,1726657842678,-500.0,0.00019178,2]
[338459680,1726657842689,-500.0,0.00019178,2]
[338459681,1726657842698,-500.0,0.00019178,2]
[338459682,1726657842709,-500.0,0.00019178,2]
[338459683,1726657842720,-642.68,0.00019178,2]
[338459684,1726657842730,-500.0,0.00019178,2]
[338459685,1726657842742,-500.0,0.00019178,2]
[338459686,1726657842752,-1314.23,0.00019178,2]
[338459687,1726657842764,-874.2,0.00019178,2]
[338459688,1726657842774,-655.84,0.00019178,2]
[338459690,1726657842989,-726.41,0.00019178,2]
[338459691,1726657843000,-500.0,0.00019178,2]
[338459692,1726657843010,-230.29370128,0.00019178,2]
[338459693,1726657843020,-500.0,0.00019178,2]
[338459694,1726657843030,-500.0,0.00019178,2]
[338459695,1726657843039,-500.0,0.00019178,2]
[338459696,1726657843051,-506.2982813,0.00019178,2]
[338459697,1726657843061,-500.0,0.00019178,2]
[338459698,1726657843071,-1491.19,0.00019178,2]
[338459699,1726657843081,-1899.85,0.00019178,2]
[338459700,1726657843090,-500.0,0.00019178,2]
[338459701,1726657843100,-500.0,0.00019178,2]
[338459702,1726657843110,-500.0,0.00019178,2]
[338459703,1726657843120,-500.0,0.00019178,2]
[338459704,1726657843129,-500.0,0.00019178,2]
[338459705,1726657843139,-998.42,0.00019178,2]
[338459706,1726657843149,-500.0,0.00019178,2]
[338459707,1726657843158,-500.0,0.00019178,2]
[338459708,1726657843168,-622.71,0.00019178,2]
[338459709,1726657843178,-617.01864428,0.00019178,2]
[338459710,1726657843189,-500.0,0.00019178,2]
[338459711,1726657843201,-642.72,0.00019178,2]
[338459712,1726657843211,-1388.25,0.00019178,2]
[338459713,1726657843222,-500.0,0.00019178,2]
[338459714,1726657843233,-500.0,0.00019178,2]
[338459715,1726657843243,-500.0,0.00019178,2]
[338459716,1726657843253,-3094.67,0.00019178,2]
[338459717,1726657843262,-500.0,0.00019178,2]
[338459718,1726657843272,-500.0,0.00019178,2]
[338459719,1726657843281,-500.0,0.00019178,2]
[338459720,1726657843291,-500.0,0.00019178,2]
[338459721,1726657843303,-538.39,0.00019178,2]
[338459722,1726657843313,-552.23,0.00019178,2]
[338459723,1726657843323,-500.0,0.00019178,2]
[338459724,1726657843335,-1343.4,0.00019178,2]
[338459725,1726657843346,-500.0,0.00019178,2]
[338459726,1726657843356,-500.0,0.00019178,2]
[338459727,1726657843365,-500.0,0.00019178,2]
[338459728,1726657843376,-500.0,0.00019178,2]
[338459729,1726657843387,-500.0,0.00019178,2]
[338459730,1726657843396,-248.80975726,0.00019178,2]
[338459731,1726657843405,-500.0,0.00019178,2]
[338459732,1726657843415,-1138.83,0.00019178,2]
[338459733,1726657843424,-911.29,0.00019178,2]
[338459734,1726657843434,-934.75,0.00019178,2]
[338459735,1726657843443,-500.0,0.00019178,2]
[338459736,1726657843453,-500.0,0.00019178,2]
[338459737,1726657843462,-500.0,0.00019178,2]
[338459738,1726657843472,-500.0,0.00019178,2]
[338459739,1726657843481,-500.0,0.00019178,2]
[338459740,1726657843492,-500.0,0.00019178,2]
[338459741,1726657843502,-500.0,0.00019178,2]
[338459742,1726657843511,-500.0,0.00019178,2]
[338459743,1726657843523,-500.0,0.00019178,2]
[338459744,1726657843532,-500.0,0.00019178,2]
[338459745,1726657843542,-500.0,0.00019178,2]
[338459746,1726657843553,-500.0,0.00019178,2]
[338459747,1726657843563,-500.0,0.00019178,2]
[338459748,1726657843573,-536.47,0.00019178,2]
[338459749,1726657843585,-500.0,0.00019178,2]
[338459750,1726657843597,-195.58183072,0.00019178,2]
[338459751,1726657843608,-500.0,0.00019178,2]
[338459752,1726657843617,-500.0,0.00019178,2]
[338459753,1726657843627,-500.0,0.00019178,2]
[338459754,1726657843637,-500.0,0.00019178,2]
[338459755,1726657843646,-649.43499826,0.00019178,2]
[338459756,1726657843656,-500.0,0.00019178,2]
[338459757,1726657843665,-500.0,0.00019178,2]
[338459758,1726657843675,-829.67,0.00019178,2]
[338459759,1726657843685,-500.0,0.00019178,2]
[338459760,1726657843696,-500.91,0.00019178,2]
[338459761,1726657843707,-1243.46,0.00019178,2]
[338459762,1726657843717,-1364.54,0.00019178,2]
[338459763,1726657843728,-2260.46,0.00019178,2]
[338459764,1726657843740,-1763.37,0.00019178,2]
[338459765,1726657843751,-500.0,0.00019178,2]
[338459766,1726657843762,-858.85,0.00019178,2]
[338459767,1726657843773,-563.94,0.00019178,2]
[338459768,1726657843782,-500.0,0.00019178,2]
[338459769,1726657843794,-500.0,0.00019178,2]
[338459770,1726657843807,-546.145174,0.00019178,2]
[338459771,1726657843818,-500.0,0.00019178,2]
[338459772,1726657843829,-500.0,0.00019178,2]
[338459773,1726657843840,-500.0,0.00019178,2]
[338459774,1726657843850,-1581.28,0.00019178,2]
[338459775,1726657843860,-1067.28,0.00019178,2]
[338459776,1726657843871,-500.0,0.00019178,2]
[338459777,1726657843883,-512.28,0.00019178,2]
[338459778,1726657843894,-1045.29,0.00019178,2]
[338459779,1726657843906,-500.0,0.00019178,2]
[338459780,1726657843915,-529.26445904,0.00019178,2]
[338459781,1726657843925,-500.0,0.00019178,2]
[338459782,1726657843937,-500.0,0.00019178,2]
[338459783,1726657843947,-500.0,0.00019178,2]
[338459784,1726657843957,-500.0,0.00019178,2]
[338459785,1726657843967,-500.0,0.00019178,2]
[338459786,1726657843976,-500.0,0.00019178,2]
[338459787,1726657843987,-500.0,0.00019178,2]
[338459788,1726657843998,-500.0,0.00019178,2]
[338459789,1726657844009,-500.0,0.00019178,2]
[338459790,1726657844020,-500.0,0.00019178,2]
[338459791,1726657844032,-500.0,0.00019178,2]
[338459792,1726657844045,-640.22207552,0.00019178,2]
[338459793,1726657844058,-1388.15,0.00019178,2]
[338459794,1726657844069,-3902.89,0.00019178,2]
[338459795,1726657844079,-500.0,0.00019178,2]
[338459796,1726657844090,-500.0,0.00019178,2]
[338459797,1726657844102,-555.20290379,0.00019178,2]
[338459798,1726657844112,-1968.88,0.00019178,2]
[338459799,1726657844123,-500.0,0.00019178,2]
[338459800,1726657844135,-500.0,0.00019178,2]
[338459801,1726657844147,-546.82,0.00019178,2]
[338459803,1726657844158,-825.31,0.00019178,2]
[338459805,1726657844168,-500.0,0.00019178,2]
[338459806,1726657844178,-500.0,0.00019178,2]
[338459807,1726657844187,-500.0,0.00019178,2]
[338459808,1726657844200,-500.0,0.00019178,2]
[338459809,1726657844213,-2068.72,0.00019178,2]
[338459810,1726657844224,-1365.84,0.00019178,2]
[338459811,1726657844235,-500.0,0.00019178,2]
[338459812,1726657844246,-500.0,0.00019178,2]
[338459813,1726657844256,-2122.47,0.00019178,2]
[338459814,1726657844267,-1047.28,0.00019178,2]
[338459815,1726657844279,-1750.27,0.00019178,2]
[338459816,1726657844289,-500.0,0.00019178,2]
[338459817,1726657844302,-500.0,0.00019178,2]
[338459818,1726657844312,-528.48,0.00019178,2]
[338459819,1726657844322,-676.35,0.00019178,2]
[338459820,1726657844331,-500.0,0.00019178,2]
[338459821,1726657844340,-500.0,0.00019178,2]
[338459822,1726657844349,-500.0,0.00019178,2]
[338459823,1726657844359,-500.0,0.00019178,2]
[338459824,1726657844368,-500.0,0.00019178,2]
[338459825,1726657844378,-500.0,0.00019178,2]
[338459826,1726657844388,-500.0,0.00019178,2]
[338459827,1726657844399,-500.0,0.00019178,2]
[338459828,1726657844410,-1681.86,0.00019178,2]
[338459829,1726657844420,-500.0,0.00019178,2]
[338459830,1726657844430,-500.0,0.00019178,2]
[338459831,1726657844442,-534.77671542,0.00019178,2]
[338459832,1726657844455,-500.0,0.00019178,2]
[338459833,1726657844464,-517.59,0.00019178,2]
[338459834,1726657844476,-504.26,0.00019178,2]
[338459835,1726657844486,-500.0,0.00019178,2]
[338459836,1726657844498,-500.0,0.00019178,2]
[338459837,1726657844507,-500.0,0.00019178,2]
[338459838,1726657844517,-560.6,0.00019178,2]
[338459839,1726657844527,-500.0,0.00019178,2]
[338459840,1726657844538,-504.17506452,0.00019178,2]
[338459841,1726657844548,-500.0,0.00019178,2]
[338459842,1726657844562,-500.0,0.00019178,2]
[338459843,1726657844572,-607.7,0.00019178,2]
[338459844,1726657844583,-815.38,0.00019178,2]
[338459845,1726657844593,-500.0,0.00019178,2]
[338459846,1726657844603,-500.0,0.00019178,2]
[338459847,1726657844613,-671.23,0.00019178,2]
[338459848,1726657844624,-1049.6,0.00019178,2]
[338459849,1726657844636,-500.0,0.00019178,2]
[338459850,1726657844647,-500.0,0.00019178,2]
[338459851,1726657844658,-573.21,0.00019178,2]
[338459852,1726657844668,-500.0,0.00019178,2]
[338459853,1726657844677,-500.0,0.00019178,2]
[338459854,1726657844687,-500.0,0.00019178,2]
[338459855,1726657844697,-500.0,0.00019178,2]
[338459856,1726657844708,-500.0,0.00019178,2]
[338459857,1726657844718,-500.0,0.00019178,2]
[338459858,1726657844731,-500.0,0.00019178,2]
[338459859,1726657844741,-500.0,0.00019178,2]
[338459860,1726657844750,-500.0,0.00019178,2]
[338459861,1726657844760,-500.0,0.00019178,2]
[338459862,1726657844769,-500.0,0.00019178,2]
[338459863,1726657844778,-500.0,0.00019178,2]
[338459864,1726657844787,-500.0,0.00019178,2]
[338459865,1726657844797,-500.0,0.00019178,2]
[338459866,1726657844809,-500.0,0.00019178,2]
[338459867,1726657844818,-500.0,0.00019178,2]
[338459868,1726657844828,-500.0,0.00019178,2]
[338459869,1726657844837,-500.0,0.00019178,2]
[338459870,1726657844847,-500.0,0.00019178,2]
[338459871,1726657844858,-363.29011384,0.00019178,2]
[338459872,1726657844867,-686.13,0.00019178,2]
[338459873,1726657844878,-500.0,0.00019178,2]
[338459874,1726657844889,-1344.85,0.00019178,2]
[338459875,1726657844899,-626.57,0.00019178,2]
[338459876,1726657844908,-500.0,0.00019178,2]
[338459877,1726657844918,-1046.07,0.00019178,2]
[338459878,1726657844927,-500.0,0.00019178,2]
[338459879,1726657844939,-500.0,0.00019178,2]
[338459880,1726657844949,-636.98,0.00019178,2]
[338459881,1726657844958,-500.0,0.00019178,2]
[338459882,1726657844968,-762.5,0.00019178,2]
[338459883,1726657844977,-500.0,0.00019178,2]
[338459884,1726657844987,-500.0,0.00019178,2]
[338459885,1726657844997,-500.0,0.00019178,2]
[338459886,1726657845007,-1068.84,0.00019178,2]
[338459887,1726657845016,-1439.96,0.00019178,2]
[338459888,1726657845026,-520.1332882,0.00019178,2]
[338459889,1726657845035,-500.0,0.00019178,2]
[338459890,1726657845045,-2256.49,0.00019178,2]
[338459891,1726657845055,-500.0,0.00019178,2]
[338459892,1726657845064,-500.0,0.00019178,2]
[338459893,1726657845074,-804.64,0.00019178,2]
[338459894,1726657845083,-500.0,0.00019178,2]
[338459895,1726657845093,-3214.0,0.00019178,2]
[338459896,1726657845101,-981.02,0.00019178,2]
[338459897,1726657845111,-500.0,0.00019178,2]
[338459898,1726657845120,-1217.35,0.00019178,2]
[338459899,1726657845129,-500.0,0.00019178,2]
[338459900,1726657845139,-533.8,0.00019178,2]
[338459901,1726657845150,-500.0,0.00019178,2]
[338459902,1726657845163,-500.0,0.00019178,2]
[338459903,1726657845173,-500.0,0.00019178,2]
[338459904,1726657845184,-774.27,0.00019178,2]
[338459905,1726657845194,-151.0,0.00019178,2]
[338459906,1726657845209,-500.0,0.00019178,2]
[338459907,1726657845218,-500.0,0.00019178,2]
[338459908,1726657845228,-188.942496,0.00019178,2]
[338459909,1726657845239,-500.0,0.00019178,2]
[338459910,1726657845248,-668.73,0.00019178,2]
[338459911,1726657845257,-188.942496,0.00019178,2]
[338459912,1726657845267,-500.0,0.00019178,2]
[338459913,1726657845278,-1268.85,0.00019178,2]
[338459914,1726657845289,-500.0,0.00019178,2]
[338459915,1726657845299,-500.0,0.00019178,2]
[338459916,1726657845309,-500.0,0.00019178,2]
[338459917,1726657845319,-500.0,0.00019178,2]
[338459918,1726657845328,-535.58,0.00019178,2]
[338459919,1726657845339,-952.81,0.00019178,2]
[338459920,1726657845348,-889.59,0.00019178,2]
[338459921,1726657845358,-500.0,0.00019178,2]
[338459922,1726657845367,-537.26774126,0.00019178,2]
[338459923,1726657845376,-500.0,0.00019178,2]
[338459924,1726657845387,-750.57,0.00019178,2]
[338459925,1726657845397,-759.07,0.00019178,2]
[338459926,1726657845409,-500.0,0.00019178,2]
[338459927,1726657845419,-592.61,0.00019178,2]
[338459928,1726657845428,-722.8,0.00019178,2]
[338459929,1726657845440,-500.0,0.00019178,2]
[338459930,1726657845452,-1991.54,0.00019178,2]
[338459931,1726657845464,-2200.36,0.00019178,2]
[338459932,1726657845473,-500.0,0.00019178,2]
[338459933,1726657845483,-500.0,0.00019178,2]
[338459934,1726657845493,-500.0,0.00019178,2]
[338459935,1726657845503,-500.0,0.00019178,2]
[338459936,1726657845513,-500.0,0.00019178,2]
[338459938,1726657845524,-797.28,0.00019178,2]
[338459939,1726657845534,-500.0,0.00019178,2]
[338459940,1726657845545,-500.0,0.00019178,2]
[338459941,1726657845558,-518.13,0.00019178,2]
[338459942,1726657845569,-1578.37,0.00019178,2]
[338459943,1726657845579,-500.0,0.00019178,2]
[338459944,1726657845588,-500.0,0.00019178,2]
[338459945,1726657845598,-500.0,0.00019178,2]
[338459946,1726657845607,-1333.34,0.00019178,2]
[338459947,1726657845617,-500.0,0.00019178,2]
[338459949,1726657845627,-3730.69,0.00019178,2]
[338459950,1726657845638,-1123.68,0.00019178,2]
[338459951,1726657845650,-6373.96,0.00019178,2]
[338459952,1726657845660,-500.0,0.00019178,2]
[338459953,1726657845672,-500.0,0.00019178,2]
[338459954,1726657845686,-500.0,0.00019178,2]
[338459955,1726657845696,-9090.79,0.00019178,2]
[338459956,1726657845706,-830.03,0.00019178,2]
[338459957,1726657845717,-500.0,0.00019178,2]
[338459958,1726657845727,-500.0,0.00019178,2]
[338459959,1726657845738,-856.01,0.00019178,2]
[338459960,1726657845748,-151.0,0.00019178,2]
[338459961,1726657845759,-500.0,0.00019178,2]
[338459962,1726657845769,-500.0,0.00019178,2]
[338459963,1726657845779,-247.6,0.00019178,2]
[338459964,1726657845789,-1533.35,0.00019178,2]
[338459965,1726657845799,-500.0,0.00019178,2]
[338459966,1726657845814,-500.0,0.00019178,2]
[338459967,1726657845829,-720.68,0.00019178,2]
[338459968,1726657845841,-500.0,0.00019178,2]
[338459969,1726657845851,-513.42,0.00019178,2]
[338459970,1726657845861,-500.0,0.00019178,2]
[338459971,1726657845871,-1553.59,0.00019178,2]
[338459972,1726657845883,-500.0,0.00019178,2]
[338459973,1726657845892,-589.77,0.00019178,2]
[338459974,1726657845902,-500.0,0.00019178,2]
[338459975,1726657845912,-500.0,0.00019178,2]
[338459976,1726657845922,-673.66,0.00019178,2]
[338459977,1726657845934,-500.0,0.00019178,2]
[338459978,1726657845946,-500.0,0.00019178,2]
[338459979,1726657845956,-500.0,0.00019178,2]
[338459980,1726657845965,-500.0,0.00019178,2]
[338459981,1726657845974,-500.0,0.00019178,2]
[338459982,1726657845985,-4484.86,0.00019178,2]
[338459983,1726657845994,-500.0,0.00019178,2]
[338459984,1726657846005,-500.0,0.00019178,2]
[338459985,1726657846014,-500.0,0.00019178,2]
[338459986,1726657846024,-712.51,0.00019178,2]
[338459987,1726657846034,-500.0,0.00019178,2]
[338459988,1726657846044,-151.0,0.00019178,2]
[338459989,1726657846058,-151.0,0.00019178,2]
[338459990,1726657846068,-366.94056256,0.00019178,2]
[338459991,1726657846078,-500.0,0.00019178,2]
[338459992,1726657846087,-1740.53,0.00019178,2]
[338459993,1726657846098,-5280.22,0.00019178,2]
[338459994,1726657846108,-817.3,0.00019178,2]
[338459996,1726657846120,-2290.91,0.00019178,2]
[338459998,1726657846129,-500.0,0.00019178,2]
[338460000,1726657846294,-500.0,0.00019178,2]
[338460001,1726657846307,-500.0,0.00019178,2]
[338460002,1726657846317,-500.0,0.00019178,2]
[338460003,1726657846327,-151.0,0.00019178,2]
[338460004,1726657846338,-646.63566128,0.00019178,2]
[338460005,1726657846349,-151.0,0.00019178,2]
[338460006,1726657846361,-734.86,0.00019178,2]
[338460007,1726657846372,-1535.4,0.00019178,2]
[338460008,1726657846383,-500.0,0.00019178,2]
[338460009,1726657846392,-785.27,0.00019178,2]
[338460010,1726657846402,-500.0,0.00019178,2]
[338460011,1726657846412,-715.56,0.00019178,2]
[338460012,1726657846423,-631.42,0.00019178,2]
[338460013,1726657846433,-500.0,0.00019178,2]
[338460014,1726657846444,-546.17589861,0.00019178,2]
[338460015,1726657846454,-192.27849702,0.00019178,2]
[338460016,1726657846850,-515.91150298,0.00019178,2]
[338460017,1726657846861,-500.0,0.00019178,2]
[338460018,1726657846872,-3833.94,0.00019178,2]
[338460019,1726657846882,-924.98,0.00019178,2]
[338460020,1726657846893,-500.0,0.00019178,2]
[338460021,1726657846905,-1054.17,0.00019178,2]
[338460022,1726657846915,-698.0,0.00019178,2]
[338460023,1726657846927,-500.0,0.00019178,2]
[338460024,1726657846938,-151.0,0.00019178,2]
[338460025,1726657846949,-151.0,0.00019178,2]
[338460026,1726657846959,-823.25,0.00019178,2]
[338460027,1726657846970,-521.55,0.00019178,2]
[338460028,1726657846981,-500.0,0.00019178,2]
[338460029,1726657846992,-500.0,0.00019178,2]
[338460030,1726657847002,-1637.94,0.00019178,2]
[338460031,1726657847014,-2525.92,0.00019178,2]
[338460032,1726657847025,-500.0,0.00019178,2]
[338460033,1726657847035,-517.71783702,0.00019178,2]
[338460034,1726657847044,-500.0,0.00019178,2]
[338460035,1726657847056,-500.0,0.00019178,2]
[338460036,1726657847068,-500.0,0.00019178,2]
[338460037,1726657847077,-500.0,0.00019178,2]
[338460038,1726657847089,-500.0,0.00019178,2]
[338460039,1726657847100,-500.0,0.00019178,2]
[338460040,1726657847112,-500.0,0.00019178,2]
[338460041,1726657847123,-706.68,0.00019178,2]
[338460042,1726657847133,-1000.92,0.00019178,2]
[338460043,1726657847144,-500.0,0.00019178,2]
[338460044,1726657847155,-2903.2,0.00019178,2]
[338460045,1726657847167,-500.0,0.00019178,2]
[338460046,1726657847177,-500.0,0.00019178,2]
[338460047,1726657847186,-1209.0,0.00019178,2]
[338460048,1726657847199,-580.53,0.00019178,2]
[338460049,1726657847211,-617.14,0.00019178,2]
[338460050,1726657847221,-569.48,0.00019178,2]
[338460051,1726657847231,-1016.91,0.00019178,2]
[338460052,1726657847241,-2308.07,0.00019178,2]
[338460053,1726657847250,-502.33,0.00019178,2]
[338460054,1726657847259,-500.0,0.00019178,2]
[338460055,1726657847270,-12671.91,0.00019178,2]
[338460056,1726657847279,-1608.33,0.00019178,2]
[338460057,1726657847289,-250.0,0.00019178,2]
[338460058,1726657847298,-1290.78,0.00019178,2]
[338460059,1726657847310,-1959.35,0.00019178,2]
[338460060,1726657847321,-500.0,0.00019178,2]
[338460061,1726657847331,-504.38277641,0.00019178,2]
[338460062,1726657847341,-500.0,0.00019178,2]
[338460063,1726657847351,-2301.74,0.00019178,2]
[338460064,1726657847363,-500.0,0.00019178,2]
[338460065,1726657847374,-500.0,0.00019178,2]
[338460066,1726657847384,-500.0,0.00019178,2]
[338460067,1726657847394,-500.0,0.00019178,2]
[338460068,1726657847404,-519.35,0.00019178,2]
[338460069,1726657847413,-500.0,0.00019178,2]
[338460070,1726657847423,-719.08,0.00019178,2]
[338460071,1726657847432,-500.0,0.00019178,2]
[338460072,1726657847442,-500.0,0.00019178,2]
[338460073,1726657847452,-500.0,0.00019178,2]
[338460074,1726657847462,-500.0,0.00019178,2]
[338460075,1726657847471,-1489.98,0.00019178,2]
[338460076,1726657847481,-500.0,0.00019178,2]
[338460077,1726657847491,-500.0,0.00019178,2]
[338460078,1726657847502,-500.0,0.00019178,2]
[338460079,1726657847512,-500.0,0.00019178,2]
[338460080,1726657847524,-500.0,0.00019178,2]
[338460081,1726657847534,-500.0,0.00019178,2]
[338460082,1726657847546,-500.0,0.00019178,2]